bitfinex-derivatives/quotes_BTCF0:USTF0_20241025
["timestamp","ask_amount","ask_price","bid_price","bid_amount"]
[1729877606999,0.074194,67421.0,67420.0,0.09087902]
[1729877607399,0.21657164,67421.0,67420.0,0.09087902]
[1729877607691,0.14237764,67428.0,67422.0,0.074192]
[1729877607893,0.14237764,67428.0,67420.0,0.23324558]
[1729877607894,0.074194,67421.0,67420.0,0.14237764]
[1729877608098,0.074194,67421.0,67420.0,0.23312242]
[1729877608499,0.074194,67421.0,67420.0,0.09074478]
[1729877608695,0.14237764,67425.0,67419.0,0.3608]
[1729877608896,0.074195,67420.0,67419.0,0.3608]
[1729877609096,0.074195,67420.0,67419.0,0.45173612]
[1729877609289,0.137595,67420.0,67419.0,0.45173612]
[1729877610099,0.137595,67420.0,67419.0,0.3608]
[1729877610394,0.137595,67420.0,67419.0,0.4517275]
[1729877610601,0.137595,67420.0,67419.0,0.3608]
[1729877610803,0.137595,67420.0,67419.0,0.4517123]
[1729877611199,0.137595,67420.0,67419.0,0.3608]
[1729877612699,0.0634,67420.0,67417.0,0.21632961]
[1729877613000,0.074196,67419.0,67417.0,0.21632961]
[1729877613305,0.074197,67418.0,67417.0,0.21632961]
[1729877613495,0.074197,67418.0,67417.0,0.30721947]
[1729877613711,0.074197,67418.0,67417.0,0.2332675]
[1729877613898,0.074197,67418.0,67417.0,0.30720784]
[1729877614094,0.074197,67418.0,67417.0,0.3074655]
[1729877614803,0.065,67424.0,67417.0,0.2332675]
[1729877614804,0.074194,67422.0,67417.0,0.2332675]
[1729877614999,0.074194,67422.0,67420.0,0.07395264]
[1729877615200,0.074194,67422.0,67421.0,0.074194]
[1729877615399,0.074194,67422.0,67421.0,0.14814664]
[1729877615593,0.074194,67422.0,67421.0,0.07395264]
[1729877615797,0.074194,67421.0,67420.0,0.07395264]
[1729877615999,0.21657164,67421.0,67420.0,0.16490281]
[1729877616195,0.074195,67420.0,67418.0,0.07397563]
[1729877616400,0.14237764,67421.0,67418.0,0.07397563]
[1729877616597,0.0614,67419.0,67417.0,0.07397563]
[1729877616801,0.21657464,67418.0,67417.0,0.07397563]
[1729877617002,0.21657464,67418.0,67417.0,0.16516836]
[1729877617397,0.21657464,67418.0,67417.0,0.09115468]
[1729877617595,0.14237764,67418.0,67417.0,0.07404576]
[1729877617801,0.21657464,67418.0,67417.0,0.16526465]
[1729877617999,0.21657464,67418.0,67417.0,0.16526488]
[1729877618402,0.14237764,67418.0,67417.0,0.1652917]
[1729877618609,0.21657464,67418.0,67417.0,0.1652917]
[1729877618800,0.21657464,67418.0,67417.0,0.09125058]
[1729877619000,0.21657464,67418.0,67417.0,0.16529145]
[1729877619212,0.21657464,67418.0,67417.0,0.09121698]
[1729877619412,0.21657464,67418.0,67417.0,0.16525774]
[1729877619707,0.21657464,67418.0,67417.0,0.16522017]
[1729877619910,0.21657464,67418.0,67417.0,0.16522431]
[1729877620409,0.074198,67417.0,67416.0,0.07404076]
[1729877620606,0.074199,67416.0,67414.0,0.07404076]
[1729877620901,0.074199,67416.0,67408.0,0.3608]
[1729877620902,0.074203,67413.0,67412.0,0.07404076]
[1729877621109,0.14237764,67413.0,67412.0,0.09137906]
[1729877621308,0.074203,67413.0,67412.0,0.09137906]
[1729877621517,0.074203,67413.0,67412.0,0.16558306]
[1729877621713,0.1341,67416.0,67415.0,0.0742]
[1729877622015,0.1341,67416.0,67415.0,0.52639074]
[1729877622616,0.065,67424.0,67423.0,0.074192]
[1729877622804,0.074185,67429.0,67428.0,0.074186]
[1729877623011,0.074185,67429.0,67428.0,0.50898862]
[1729877623205,0.074185,67429.0,67428.0,0.52581574]
[1729877624113,0.074182,67433.0,67432.0,0.074181]
[1729877624312,0.074182,67433.0,67432.0,0.23876529]
[1729877624705,0.074182,67433.0,67432.0,0.16477054]
[1729877625606,0.074182,67433.0,67432.0,0.16475737]
[1729877626110,0.074182,67433.0,67432.0,0.16471745]
[1729877626314,0.0622,67434.0,67433.0,0.074181]
[1729877626622,0.14460253,67435.0,67434.0,0.074179]
[1729877626623,0.00222489,67435.0,67434.0,0.074179]
[1729877626823,0.00222489,67435.0,67434.0,0.27237534]
[1729877627820,0.21878053,67435.0,67434.0,0.19819634]
[1729877628018,0.21878053,67435.0,67434.0,0.09053645]
[1729877628320,0.21878053,67435.0,67434.0,0.16454118]
[1729877628919,0.14460253,67435.0,67434.0,0.16460796]
[1729877629124,0.21878053,67435.0,67434.0,0.07400473]
[1729877629518,0.21878053,67435.0,67433.0,0.07400473]
[1729877629519,0.14460253,67435.0,67433.0,0.07400473]
[1729877629716,0.074183,67431.0,67430.0,0.5237845]
[1729877629922,0.074183,67431.0,67430.0,0.61428518]
[1729877630325,0.074183,67431.0,67430.0,0.45130068]
[1729877632129,0.519103,67431.0,67430.0,0.3608]
[1729877632334,0.3608,67431.0,67430.0,0.05921104]
[1729877632826,0.074184,67430.0,67429.0,0.05921104]
[1729877633134,0.28056164,67430.0,67429.0,0.05921104]
[1729877633337,0.28056164,67430.0,67428.0,0.05921104]
[1729877633526,0.20307764,67429.0,67425.0,0.07400715]
[1729877634929,0.074188,67426.0,67425.0,0.07400715]
[1729877635132,0.074188,67426.0,67425.0,0.16477452]
[1729877637633,0.074188,67426.0,67425.0,0.16477452]
[1729877638339,0.074188,67426.0,67425.0,0.16478067]
[1729877639035,0.074188,67426.0,67425.0,0.16473494]
[1729877639741,0.20307764,67429.0,67421.0,0.0888005]
[1729877639931,0.0607,67429.0,67427.0,0.05921597]
[1729877640235,0.14237764,67428.0,67421.0,0.074193]
[1729877640428,0.21656964,67423.0,67422.0,0.09079624]
[1729877640827,0.074195,67420.0,67419.0,0.3608]
[1729877641037,0.21657264,67420.0,67419.0,0.3608]
[1729877641232,0.21657264,67420.0,67413.0,0.0888005]
[1729877641434,0.074201,67414.0,67413.0,0.074203]
[1729877641634,0.074201,67414.0,67413.0,0.1646644]
[1729877642134,0.074201,67414.0,67413.0,0.16466945]
[1729877642637,0.074201,67414.0,67413.0,0.09046645]
[1729877643444,0.074201,67414.0,67413.0,0.09065035]
[1729877643638,0.074201,67414.0,67413.0,0.09062519]
[1729877643944,0.074205,67411.0,67410.0,0.074205]
[1729877644142,0.074202,67414.0,67413.0,0.074202]
[1729877644843,0.074202,67414.0,67413.0,0.435002]
[1729877645042,0.074202,67414.0,67406.0,0.0589]
[1729877645043,0.14237764,67414.0,67406.0,0.0589]
[1729877645238,0.074209,67407.0,67406.0,0.0589]
[1729877649046,0.14237764,67409.0,67405.0,0.3608]
[1729877649244,0.13571,67406.0,67405.0,0.41998906]
[1729877649445,0.13571,67406.0,67405.0,0.3608]
[1729877649852,0.07421,67406.0,67405.0,0.41998906]
[1729877650150,0.074207,67410.0,67405.0,0.41998049]
[1729877650357,0.074207,67410.0,67409.0,0.074206]
[1729877651237,0.074207,67410.0,67409.0,0.1333862]
[1729877651853,0.074207,67410.0,67409.0,0.16430066]
[1729877653149,0.0634,67416.0,67409.0,0.09009466]
[1729877653349,0.074184,67431.0,67414.0,0.3608]
[1729877653350,0.121,67424.0,67414.0,0.3608]
[1729877653649,0.121,67424.0,67421.0,0.04437188]
[1729877653650,0.074194,67422.0,67421.0,0.04437188]
[1729877653841,0.074194,67422.0,67420.0,0.4941575]
[1729877654048,0.074194,67422.0,67420.0,0.4199625]
[1729877654351,0.074194,67422.0,67421.0,0.074194]
[1729877654648,0.074191,67425.0,67424.0,0.07419]
[1729877655550,0.074186,67429.0,67422.0,0.14237764]
[1729877655743,0.074186,67429.0,67428.0,0.57736364]
[1729877655944,0.50317764,67438.0,67432.0,0.074181]
[1729877655945,0.074181,67433.0,67432.0,0.074181]
[1729877656554,0.02226025,67439.0,67434.0,0.074179]
[1729877656749,0.07640289,67435.0,67434.0,0.49414177]
[1729877656946,0.07640289,67435.0,67434.0,0.434979]
[1729877658044,0.074163,67450.0,67434.0,1.69648793]
[1729877658247,0.14237764,67460.0,67449.0,0.04437423]
[1729877658248,0.14237764,67451.0,67449.0,0.04437423]
[1729877658456,0.074162,67450.0,67449.0,0.04437423]
[1729877658961,0.14237764,67451.0,67446.0,0.074166]
[1729877658962,0.074165,67447.0,67446.0,0.074166]
[1729877659350,0.07417,67443.0,67442.0,0.43497]
[1729877659646,0.074178,67435.0,67434.0,0.36302413]
[1729877659852,0.21655564,67435.0,67434.0,0.36302413]
[1729877660758,0.21655564,67435.0,67434.0,0.3608]
[1729877660959,0.14237764,67435.0,67428.0,0.074186]
[1729877661160,0.074185,67429.0,67428.0,0.074186]
[1729877661351,0.074186,67428.0,67427.0,0.3608]
[1729877663166,0.07419,67424.0,67423.0,0.074191]
[1729877663671,0.074193,67422.0,67421.0,0.14237764]
[1729877663856,0.074195,67420.0,67419.0,0.3608]
[1729877664471,0.074188,67427.0,67419.0,0.3608]
[1729877664654,0.074172,67441.0,67427.0,0.074186]
[1729877664655,0.074179,67434.0,67427.0,0.074186]
[1729877664972,0.074187,67427.0,67426.0,0.00088]
[1729877665269,0.074188,67426.0,67425.0,0.3608]
[1729877665660,0.074188,67426.0,67425.0,0.434989]
[1729877666863,0.074188,67426.0,67425.0,0.3608]
[1729877667273,0.3608,67430.0,67422.0,0.14237764]
[1729877667470,0.074187,67427.0,67426.0,0.05912813]
[1729877668271,0.074187,67427.0,67426.0,0.05912678]
[1729877668868,0.50461764,67432.0,67425.0,0.05912678]
[1729877669061,0.134988,67426.0,67425.0,0.05912678]
[1729877669458,0.495788,67426.0,67415.0,0.074199]
[1729877669659,0.074199,67416.0,67415.0,0.074199]
[1729877669862,0.074203,67413.0,67412.0,0.43559659]
[1729877670068,0.074203,67413.0,67412.0,0.3608]
[1729877670263,0.21658064,67413.0,67412.0,0.3608]
[1729877670465,0.074204,67412.0,67411.0,0.05914121]
[1729877670666,0.074205,67411.0,67410.0,0.05914121]
[1729877670863,0.074217,67400.0,67399.0,0.05914121]
[1729877671064,0.435017,67400.0,67386.0,0.07391659]
[1729877671266,0.074226,67392.0,67391.0,0.05912062]
[1729877671466,0.074225,67393.0,67392.0,0.074225]
[1729877671661,0.0629,67399.0,67392.0,0.14237764]
[1729877671872,0.074222,67396.0,67395.0,0.074222]
[1729877672376,0.074222,67396.0,67395.0,0.1333183]
[1729877672861,0.074222,67396.0,67395.0,0.0590963]
[1729877673373,0.074223,67394.0,67393.0,0.0590963]
[1729877673572,0.074223,67394.0,67393.0,0.1333213]
[1729877673763,0.074223,67394.0,67393.0,0.074225]
[1729877675080,0.074223,67394.0,67393.0,0.1332846]
[1729877675474,0.074223,67394.0,67393.0,0.074225]
[1729877675673,0.074223,67394.0,67393.0,0.1332846]
[1729877675879,0.074223,67394.0,67393.0,0.074225]
[1729877676377,0.074226,67392.0,67391.0,0.0590596]
[1729877676574,0.0629,67399.0,67388.0,0.3608]
[1729877676575,0.074229,67389.0,67388.0,0.3608]
[1729877678772,0.137118,67399.0,67388.0,0.3608]
[1729877678773,0.26709764,67395.0,67388.0,0.3608]
[1729877679079,0.074227,67391.0,67390.0,0.074228]
[1729877679885,0.074229,67389.0,67388.0,0.3608]
[1729877680488,0.074227,67391.0,67389.0,0.074228]
[1729877680784,0.14237764,67394.0,67389.0,0.074228]
[1729877681783,0.074228,67390.0,67389.0,0.074228]
[1729877682681,0.074229,67389.0,67388.0,0.3608]
[1729877683684,0.074229,67389.0,67388.0,0.43503]
[1729877685283,0.0609,67398.0,67388.0,0.7216]
[1729877685483,0.0609,67398.0,67397.0,0.57739764]
[1729877685689,0.0609,67398.0,67397.0,0.43502]
[1729877686089,0.0586,67406.0,67397.0,0.50317764]
[1729877686284,0.074213,67404.0,67403.0,0.074213]
[1729877686883,0.0586,67406.0,67397.0,0.50317764]
[1729877687088,0.0586,67406.0,67405.0,0.435011]
[1729877687298,0.0618,67409.0,67408.0,0.074208]
[1729877687893,0.20417764,67409.0,67405.0,0.3608]
[1729877688197,0.074209,67407.0,67406.0,0.07421]
[1729877688580,0.14237764,67417.0,67406.0,0.14237764]
[1729877688785,0.074201,67415.0,67411.0,0.3608]
[1729877688991,0.074201,67415.0,67413.0,0.074203]
[1729877689191,0.0764272,67414.0,67413.0,0.074203]
[1729877689893,0.14460384,67414.0,67405.0,0.13313152]
[1729877690089,0.14460384,67414.0,67398.0,0.3608]
[1729877690090,0.074212,67404.0,67403.0,0.05892152]
[1729877690398,0.074218,67399.0,67398.0,0.3608]
[1729877691594,0.074218,67399.0,67398.0,0.05904454]
[1729877691795,0.1237,67403.0,67397.0,0.13326454]
[1729877692095,0.074219,67398.0,67397.0,0.13326454]
[1729877692292,0.074219,67398.0,67397.0,0.07422]
[1729877693097,0.074215,67402.0,67399.0,0.074218]
[1729877693397,0.074215,67402.0,67401.0,0.41985996]
[1729877693597,0.074215,67402.0,67401.0,0.3608]
[1729877694398,0.074216,67401.0,67399.0,0.074218]
[1729877694582,0.074216,67401.0,67400.0,0.435017]
[1729877694783,0.074216,67401.0,67400.0,0.49410831]
[1729877695085,0.074216,67401.0,67400.0,0.41989131]
[1729877695494,0.074216,67401.0,67400.0,0.3608]
[1729877697189,0.074218,67399.0,67397.0,0.07391659]
[1729877697389,0.074218,67399.0,67396.0,0.074221]
[1729877697390,0.074218,67399.0,67398.0,0.09007437]
[1729877698289,0.074218,67399.0,67398.0,0.07397076]
[1729877698500,0.074218,67399.0,67398.0,0.09014399]
[1729877700195,0.074218,67399.0,67398.0,0.17889246]
[1729877700399,0.074218,67399.0,67398.0,0.09014399]
[1729877700795,0.074218,67399.0,67397.0,0.05927569]
[1729877700796,0.199378,67399.0,67397.0,0.05927569]
[1729877700996,0.199378,67399.0,67391.0,0.07409416]
[1729877700997,0.074225,67393.0,67391.0,0.07409416]
[1729877701193,0.3608,67392.0,67390.0,0.07409416]
[1729877701499,0.074228,67390.0,67389.0,0.07409416]
[1729877701695,0.074228,67390.0,67389.0,0.16449516]
[1729877701897,0.074228,67390.0,67389.0,0.16449511]
[1729877702290,0.074228,67390.0,67389.0,0.07409416]
[1729877702992,0.074228,67390.0,67389.0,0.08981917]
[1729877703489,0.0228575,67392.0,67388.0,0.44954847]
[1729877703697,0.074229,67389.0,67388.0,0.44954847]
[1729877706114,0.074229,67389.0,67388.0,0.3608]
[1729877706401,0.14237764,67394.0,67387.0,0.3608]
[1729877706608,0.07422,67398.0,67397.0,0.07422]
[1729877706797,0.074223,67394.0,67393.0,0.435784]
[1729877707102,0.21660064,67394.0,67393.0,0.435024]
[1729877707308,0.07422,67398.0,67397.0,0.07422]
[1729877707897,0.14237764,67400.0,67394.0,0.0603]
[1729877708097,0.074222,67396.0,67395.0,0.074222]
[1729877708906,0.074222,67395.0,67394.0,0.134523]
[1729877709100,0.14237764,67397.0,67395.0,0.074222]
[1729877709296,0.14237764,67406.0,67396.0,0.14237764]
[1729877709502,0.6596077,67405.0,67399.0,0.31618578]
[1729877709702,0.6596077,67405.0,67404.0,0.074212]
[1729877710302,0.6596077,67405.0,67399.0,0.31618578]
[1729877710509,0.074217,67400.0,67399.0,0.31618578]
[1729877710712,0.074217,67400.0,67385.0,0.0622]
[1729877710917,0.21660364,67392.0,67390.0,0.3608]
[1729877711204,0.14237764,67392.0,67385.0,0.22119792]
[1729877711400,0.14237764,67389.0,67386.0,0.074232]
[1729877711602,0.21660764,67389.0,67386.0,0.074232]
[1729877711808,0.074231,67387.0,67384.0,0.4823]
[1729877712506,0.074231,67387.0,67386.0,0.074232]
[1729877712709,0.074227,67391.0,67384.0,0.62467764]
[1729877712906,0.7352597,67405.0,67391.0,0.074227]
[1729877713106,0.6596077,67405.0,67403.0,0.3608]
[1729877713302,0.6596077,67405.0,67404.0,0.074212]
[1729877713613,0.07421,67406.0,67403.0,0.3608]
[1729877713909,0.21658964,67404.0,67403.0,0.074214]
[1729877714501,0.26082157,67404.0,67403.0,0.074214]
[1729877714703,0.26082157,67404.0,67391.0,0.21660364]
[1729877714906,0.14237764,67396.0,67385.0,0.0639]
[1729877715413,0.074226,67392.0,67391.0,0.435026]
[1729877716007,0.14237764,67399.0,67394.0,0.074223]
[1729877716207,0.074222,67395.0,67394.0,0.074223]
[1729877716712,0.074219,67399.0,67398.0,0.074219]
[1729877717015,0.074215,67402.0,67401.0,0.074214]
[1729877718313,0.42586001,67421.0,67408.0,0.074207]
[1729877718507,0.14237764,67418.0,67408.0,0.21658464]
[1729877718706,0.14237764,67415.0,67408.0,0.074207]
[1729877720210,0.14237764,67411.0,67407.0,0.3608]
[1729877720517,0.074217,67400.0,67399.0,0.0594]
[1729877720711,0.074217,67400.0,67394.0,0.07405572]
[1729877720910,0.074221,67396.0,67395.0,0.074221]
[1729877721310,0.0594,67400.0,67398.0,0.074219]
[1729877721511,0.0585,67406.0,67399.0,0.50317764]
[1729877721716,0.074215,67403.0,67402.0,0.074214]
[1729877724818,0.074217,67400.0,67399.0,0.3608]
[1729877725215,0.074222,67396.0,67395.0,0.074222]
[1729877726514,0.20087764,67406.0,67391.0,0.50317764]
[1729877726715,0.074214,67403.0,67399.0,0.14237764]
[1729877726916,0.14460384,67414.0,67403.0,0.074213]
[1729877726917,0.0022262,67414.0,67403.0,0.074213]
[1729877727116,0.074207,67410.0,67409.0,0.21658464]
[1729877727322,0.074207,67410.0,67409.0,0.074207]
[1729877727525,0.074207,67410.0,67409.0,0.21658464]
[1729877727824,0.0764282,67414.0,67413.0,0.074203]
[1729877728011,0.0022262,67414.0,67413.0,0.21658064]
[1729877728213,0.0022262,67414.0,67413.0,0.57738064]
[1729877728421,0.0764272,67414.0,67413.0,0.57738064]
[1729877728610,0.0764272,67414.0,67413.0,0.435003]
[1729877728816,0.0764272,67414.0,67413.0,0.52439024]
[1729877729630,0.0022262,67414.0,67413.0,0.66676788]
[1729877730116,0.0022262,67414.0,67413.0,0.52439024]
[1729877730718,0.0764272,67414.0,67413.0,0.52439024]
[1729877731024,0.0022262,67414.0,67413.0,0.52439024]
[1729877731225,0.0022262,67414.0,67413.0,0.52429996]
[1729877731721,0.0022262,67414.0,67413.0,1.33291804]
[1729877731920,0.0022262,67414.0,67413.0,1.43917252]
[1729877732311,0.0022262,67414.0,67413.0,1.46193678]
[1729877732718,0.074191,67424.0,67422.0,0.074192]
[1729877732919,0.074191,67424.0,67423.0,0.43473414]
[1729877733123,0.074191,67424.0,67423.0,0.52370662]
[1729877733428,0.074192,67423.0,67422.0,0.074192]
[1729877733623,0.074192,67423.0,67422.0,0.14812614]
[1729877733817,0.074192,67423.0,67422.0,0.074192]
[1729877734521,0.434982,67432.0,67424.0,0.07419]
[1729877734522,0.074188,67426.0,67424.0,0.07419]
[1729877734823,0.14237764,67425.0,67422.0,0.07393414]
[1729877735121,0.14237764,67425.0,67421.0,0.36156]
[1729877735122,0.074193,67422.0,67421.0,0.3608]
[1729877735321,0.21657064,67422.0,67421.0,0.3608]
[1729877739528,0.074193,67422.0,67421.0,0.3608]
[1729877740327,0.074188,67427.0,67425.0,0.074189]
[1729877740520,0.12464,67431.0,67425.0,0.074189]
[1729877740716,0.074188,67427.0,67425.0,0.074189]
[1729877741030,0.074188,67426.0,67425.0,0.074189]
[1729877741618,0.50317764,67432.0,67421.0,0.50393764]
[1729877741819,0.063,67434.0,67431.0,0.21656064]
[1729877742018,0.074179,67435.0,67434.0,0.074179]
[1729877742220,0.36302494,67438.0,67431.0,0.14237764]
[1729877742221,0.36302494,67438.0,67432.0,0.0604]
[1729877742425,0.074179,67435.0,67434.0,0.074179]
[1729877742629,0.07639994,67438.0,67434.0,0.3608]
[1729877742925,0.00222494,67438.0,67435.0,0.14237764]
[1729877743125,0.00222494,67438.0,67437.0,0.074176]
[1729877743821,0.074178,67435.0,67434.0,0.43473414]
[1729877744123,0.0623,67437.0,67431.0,0.07393414]
[1729877744329,0.074185,67429.0,67427.0,0.07393414]
[1729877744628,0.14237764,67431.0,67423.0,0.22231462]
[1729877744629,0.07419,67426.0,67425.0,0.074189]
[1729877745225,0.07419,67424.0,67423.0,0.07393414]
[1729877745419,0.07419,67424.0,67422.0,0.07393414]
[1729877745420,0.074192,67423.0,67422.0,0.07393414]
[1729877745617,0.074193,67422.0,67421.0,0.50892714]
[1729877746029,0.074193,67422.0,67421.0,0.434993]
[1729877746428,0.074193,67422.0,67421.0,0.59765543]
[1729877746623,0.074193,67422.0,67421.0,0.59756724]
[1729877746822,0.074193,67422.0,67421.0,0.59756735]
[1729877747028,0.074193,67422.0,67421.0,0.50883906]
[1729877747227,0.074193,67422.0,67421.0,0.59754022]
[1729877747531,0.074193,67422.0,67421.0,0.52369416]
[1729877747728,0.074193,67422.0,67421.0,0.434993]
[1729877748628,0.074193,67422.0,67421.0,0.074193]
[1729877750530,0.074193,67422.0,67421.0,0.14805412]
[1729877750736,0.074193,67422.0,67421.0,0.23682598]
[1729877751229,0.3608,67422.0,67416.0,0.07386112]
[1729877751537,0.074204,67412.0,67411.0,0.07386112]
[1729877751829,0.074204,67412.0,67410.0,0.43469916]
[1729877752029,0.074204,67412.0,67411.0,0.14810416]
[1729877752330,0.074204,67412.0,67411.0,0.23722238]
[1729877752540,0.074204,67412.0,67411.0,0.16330214]
[1729877752928,0.074204,67412.0,67411.0,0.08895997]
[1729877753235,0.074204,67412.0,67411.0,0.16316497]
[1729877755038,0.074206,67410.0,67409.0,0.07619387]
[1729877755226,0.074206,67410.0,67409.0,0.00222516]
[1729877755426,0.074206,67410.0,67409.0,0.16557806]
[1729877755726,0.074206,67410.0,67409.0,0.1633529]
[1729877755928,0.074206,67410.0,67408.0,0.07396871]
[1729877756128,0.21658464,67409.0,67408.0,0.07396871]
[1729877756327,0.21658464,67409.0,67408.0,0.16286976]
[1729877757330,0.074208,67408.0,67407.0,0.07402442]
[1729877757739,0.074209,67407.0,67406.0,0.07402442]
[1729877757930,0.133109,67407.0,67406.0,0.16285286]
[1729877758327,0.133109,67407.0,67406.0,0.16283018]
[1729877758530,0.133109,67407.0,67406.0,0.07400174]
[1729877759044,0.133109,67407.0,67398.0,0.074218]
[1729877759045,0.074214,67403.0,67402.0,0.07400174]
[1729877759227,0.074214,67403.0,67402.0,0.08901761]
[1729877759538,0.074214,67403.0,67398.0,0.074218]
[1729877759539,0.133109,67407.0,67400.0,0.07400587]
[1729877759734,0.074216,67401.0,67400.0,0.07400587]
[1729877759933,0.074216,67401.0,67400.0,0.08914653]
[1729877760328,0.133109,67407.0,67400.0,0.16317003]
[1729877760534,0.074216,67401.0,67400.0,0.07398625]
[1729877760730,0.074216,67401.0,67400.0,0.16311002]
[1729877761438,0.074216,67401.0,67397.0,0.57815764]
[1729877761439,0.14237764,67405.0,67399.0,0.07396214]
[1729877761631,0.21658864,67405.0,67404.0,0.05916972]
[1729877762226,0.14237764,67405.0,67403.0,0.05916972]
[1729877762629,0.074212,67404.0,67403.0,0.05916972]
[1729877762834,0.074212,67406.0,67405.0,0.07421]
[1729877763038,0.074212,67406.0,67405.0,0.2757398]
[1729877763437,0.074212,67406.0,67405.0,0.21658764]
[1729877763634,0.074212,67406.0,67405.0,0.27548764]
[1729877764130,0.074212,67406.0,67405.0,0.20127764]
[1729877764438,0.074212,67406.0,67405.0,0.36417286]
[1729877764639,0.074212,67406.0,67405.0,0.20127764]
[1729877765039,0.074212,67406.0,67405.0,0.0589]
[1729877765244,0.074212,67406.0,67404.0,0.07391833]
[1729877765245,0.074212,67404.0,67403.0,0.09699632]
[1729877765544,0.074212,67404.0,67403.0,0.18637087]
[1729877769335,0.02322572,67414.0,67403.0,0.11215687]
[1729877769540,0.3608,67416.0,67415.0,0.0742]
[1729877769541,0.07564,67416.0,67415.0,0.0742]
[1729877769741,0.14237764,67420.0,67413.0,0.3608]
[1729877769938,0.14237764,67420.0,67407.0,0.3608]
[1729877769939,0.074208,67408.0,67407.0,0.3608]
[1729877770335,0.21658564,67408.0,67407.0,0.3608]
[1729877771144,0.074208,67408.0,67407.0,0.3608]
[1729877771739,0.074208,67408.0,67407.0,0.435009]
[1729877773235,0.1186,67416.0,67407.0,0.3608]
[1729877773440,0.07642369,67417.0,67416.0,0.074194]
[1729877773746,0.074193,67415.0,67414.0,0.0588]
[1729877774140,0.074193,67415.0,67414.0,0.493794]
[1729877775845,0.00222569,67417.0,67416.0,0.074192]
[1729877776050,0.07641669,67417.0,67416.0,0.074192]
[1729877776350,0.27685864,67426.0,67414.0,0.4196]
[1729877776649,0.074193,67415.0,67414.0,0.493794]
[1729877777439,0.074193,67415.0,67414.0,0.58198049]
[1729877778746,0.074193,67415.0,67414.0,0.60437603]
[1729877779554,0.074189,67419.0,67417.0,0.07419]
[1729877779750,0.074189,67419.0,67418.0,0.21656764]
[1729877780454,0.074189,67419.0,67418.0,0.14237764]
[1729877781155,0.074189,67419.0,67418.0,0.21656764]
[1729877781950,0.074184,67424.0,67423.0,0.074183]
[1729877782150,0.074179,67428.0,67427.0,0.074179]
[1729877782344,0.074172,67435.0,67434.0,0.074169]
[1729877782542,0.074172,67435.0,67434.0,0.57734664]
[1729877782745,0.074172,67435.0,67434.0,0.66553313]
[1729877782950,0.00222494,67438.0,67434.0,0.66553313]
[1729877782951,0.00222494,67438.0,67437.0,0.074169]
[1729877783151,0.00222494,67438.0,67437.0,0.52315549]
[1729877783556,0.00222494,67438.0,67437.0,1.19047074]
[1729877783752,0.119,67455.0,67437.0,1.19047074]
[1729877783753,0.074156,67449.0,67437.0,1.29390284]
[1729877784052,0.074156,67449.0,67448.0,0.50317764]
[1729877784250,0.074156,67449.0,67448.0,0.57733464]
[1729877785248,0.074156,67449.0,67448.0,0.63633039]
[1729877785448,0.14237764,67460.0,67448.0,0.56217339]
[1729877785645,0.07415,67454.0,67452.0,0.14237764]
[1729877786250,0.12342435,67463.0,67452.0,0.14237764]
[1729877786451,0.074143,67460.0,67459.0,0.50317764]
[1729877787053,0.00222435,67463.0,67462.0,0.074141]
[1729877787254,0.07413,67473.0,67471.0,0.074131]
[1729877787460,0.117,67483.0,67473.0,0.074128]
[1729877787756,0.117,67483.0,67477.0,0.14237764]
[1729877787956,0.117,67483.0,67472.0,0.50317764]
[1729877787957,0.074129,67473.0,67472.0,0.50317764]
[1729877788351,0.074129,67473.0,67472.0,0.57730764]
[1729877789152,0.14237764,67482.0,67472.0,0.50317764]
[1729877789352,0.074126,67476.0,67473.0,0.434929]
[1729877789553,0.074127,67475.0,67473.0,0.434929]
[1729877789754,0.074128,67474.0,67473.0,0.3608]
[1729877790660,0.21650564,67474.0,67473.0,0.3608]
[1729877792366,0.21650564,67474.0,67465.0,0.434937]
[1729877792557,0.074137,67466.0,67465.0,0.434937]
[1729877793868,0.074133,67470.0,67466.0,0.074136]
[1729877794068,0.074133,67470.0,67468.0,0.21651264]
[1729877794369,0.117,67483.0,67469.0,0.22349621]
[1729877794569,0.074124,67478.0,67477.0,0.14237764]
[1729877794772,0.117,67483.0,67479.0,0.074123]
[1729877794773,0.074119,67482.0,67479.0,0.074123]
[1729877794959,0.074119,67482.0,67481.0,0.14237764]
[1729877795365,0.074123,67479.0,67477.0,0.3608]
[1729877795670,0.17149302,67478.0,67477.0,0.074125]
[1729877795872,0.19447632,67478.0,67477.0,0.074125]
[1729877796170,0.17149302,67478.0,67477.0,0.074125]
[1729877796563,0.17149302,67478.0,67477.0,0.42374755]
[1729877796764,0.04923517,67478.0,67477.0,0.71875126]
[1729877797073,0.14524115,67479.0,67477.0,0.64462626]
[1729877797275,0.14524115,67485.0,67484.0,0.074117]
[1729877797585,0.16323009,67487.0,67486.0,0.074115]
[1729877797985,0.16323009,67487.0,67486.0,0.29777666]
[1729877798285,0.14524115,67491.0,67490.0,0.07411]
[1729877798483,0.074109,67491.0,67490.0,0.07411]
[1729877798677,0.23733909,67491.0,67490.0,0.07411]
[1729877800386,0.23733909,67491.0,67490.0,0.09728997]
[1729877800581,0.23733909,67491.0,67490.0,0.02317997]
[1729877800783,0.074111,67490.0,67488.0,0.14237764]
[1729877800983,0.074111,67490.0,67488.0,0.21648964]
[1729877801184,0.074111,67490.0,67489.0,0.22129344]
[1729877802083,0.074112,67489.0,67488.0,0.14237764]
[1729877802289,0.16323009,67490.0,67489.0,0.074112]
[1729877803088,0.23734009,67490.0,67489.0,0.074112]
[1729877803481,0.07411,67490.0,67489.0,0.074112]
[1729877805083,0.074112,67489.0,67488.0,0.14237764]
[1729877805380,0.23734209,67489.0,67488.0,0.14237764]
[1729877806887,0.23734209,67489.0,67482.0,0.074119]
[1729877806888,0.23734209,67489.0,67481.0,0.3608]
[1729877807086,0.074117,67484.0,67483.0,0.14237764]
[1729877808991,0.434908,67493.0,67483.0,0.14237764]
[1729877808992,0.3608,67493.0,67483.0,0.14237764]
[1729877809188,0.074118,67483.0,67481.0,0.45751178]
[1729877809383,0.074118,67483.0,67481.0,0.38339178]
[1729877809579,0.074118,67483.0,67482.0,0.074119]